bitfinex/quotes_ETHUSD_20251117
["timestamp","ask_amount","ask_price","bid_price","bid_amount"]
[1763397992898,0.002,3110.4,3110.1,0.1403]
[1763397993602,0.002,3110.4,3109.5,0.2844]
[1763397993778,0.002,3110.1,3109.3,1.36136797]
[1763397993981,0.002,3110.1,3109.3,0.21329931]
[1763397994184,0.002,3110.1,3108.8,1.14806866]
[1763397994185,0.1987,3109.4,3108.8,1.14806866]
[1763397994383,0.002,3110.1,3108.7,0.1441]
[1763397994589,0.002,3110.1,3108.9,1.55357266]
[1763397994788,0.002,3110.1,3109.1,0.405504]
[1763397995189,0.002,3110.1,3109.2,0.2844]
[1763397997006,0.002,3110.1,3109.5,0.405504]
[1763397997404,0.002,3110.1,3109.7,0.405504]
[1763397997610,0.002,3111.8,3109.9,1.55357266]
[1763397997919,0.002,3111.8,3109.8,8.64968647]
[1763397997920,0.002,3111.8,3111.0,3.03468297]
[1763397998081,0.002,3111.8,3111.6,1.31249664]
[1763397998280,0.002,3111.8,3111.1,0.90699264]
[1763397998494,0.002,3111.8,3111.0,0.405504]
[1763397998917,0.002,3111.8,3111.1,0.278]
[1763398000516,0.002,3111.8,3111.2,0.405504]
[1763398000883,0.002,3111.8,3111.4,0.405504]
[1763398001286,0.002,3111.8,3111.0,0.683504]
[1763398001709,0.002,3111.8,3110.3,1.85928633]
[1763398001710,0.002,3111.8,3111.2,1.31249664]
[1763398001899,0.002,3111.8,3111.4,0.405504]
[1763398002115,0.002,3111.8,3111.7,0.405504]
[1763398002310,0.002,3111.8,3111.7,1.59049664]
[1763398002909,0.455,3113.5,3111.7,1.59049664]
[1763398003109,0.1911,3113.6,3112.4,1.31249664]
[1763398003318,0.002,3114.6,3112.4,1.31249664]
[1763398003319,0.455,3114.4,3112.9,1.31249664]
[1763398003506,0.455,3114.4,3113.0,0.1409]
[1763398004121,0.455,3114.1,3113.0,0.1409]
[1763398004946,0.1911,3113.1,3112.5,0.99621831]
[1763398005127,0.1911,3113.1,3112.2,0.1409]
[1763398005328,0.1911,3113.1,3111.7,0.1409]
[1763398005329,0.455,3113.0,3111.7,0.1409]
[1763398005867,0.1911,3112.9,3111.7,0.1409]
[1763398006140,0.6461,3112.9,3111.7,0.1409]
[1763398006658,0.455,3112.8,3110.9,8.92768647]
[1763398006805,0.1911,3112.9,3111.0,1.18499264]
[1763398007004,0.1911,3112.9,3111.1,0.405504]
[1763398007213,0.455,3112.8,3111.2,0.278]
[1763398007756,0.455,3112.8,3111.3,0.405504]
[1763398008138,0.1911,3112.9,3111.5,0.405504]
[1763398008630,0.1911,3112.9,3111.5,0.278]
[1763398008835,0.6461,3112.9,3111.5,0.278]
[1763398009347,0.1911,3112.9,3111.2,0.405504]
[1763398009558,0.1911,3113.1,3111.7,0.405504]
[1763398009943,0.1911,3113.1,3111.9,0.405504]
[1763398010254,0.1911,3113.1,3111.4,0.405504]
[1763398010255,0.1911,3113.4,3112.1,0.405504]
[1763398010551,0.6461,3113.7,3112.3,0.405504]
[1763398010877,0.6461,3113.7,3112.2,0.4189]
[1763398010878,0.6461,3114.2,3112.5,0.405504]
[1763398011152,0.6461,3114.2,3112.6,0.278]
[1763398011526,0.002,3113.1,3112.6,0.278]
[1763398012269,0.002,3113.1,3112.7,0.405504]
[1763398012754,0.002,3113.1,3112.5,0.90699264]
[1763398012755,0.002,3113.1,3112.9,0.405504]
[1763398012956,0.002,3113.5,3113.1,0.405504]
[1763398013120,0.002,3113.5,3113.1,1.31249664]
[1763398013319,0.002,3113.5,3113.3,0.405504]
[1763398013622,0.002,3113.5,3113.4,0.405504]
[1763398013823,0.002,3113.5,3113.4,0.683504]
[1763398014352,0.002,3113.5,3113.4,0.405504]
[1763398014722,0.002,3113.5,3113.4,0.683504]
[1763398015161,0.002,3113.5,3113.4,0.405504]
[1763398015343,0.002,3113.5,3113.3,0.405504]
[1763398015773,0.002,3113.5,3113.2,0.405504]
[1763398015977,0.002,3113.5,3113.3,0.278]
[1763398016158,0.002,3113.5,3113.2,0.405504]
[1763398016461,0.455,3113.4,3112.6,0.85417546]
[1763398016623,0.455,3113.4,3112.1,0.85417546]
[1763398016822,0.4542,3113.4,3111.7,0.85417546]
[1763398017032,0.4542,3113.4,3111.9,0.2788]
[1763398017277,0.002,3113.5,3112.1,1.7611681]
[1763398017468,0.002,3113.5,3112.3,0.19020681]
[1763398018582,0.002,3113.5,3112.0,1.25967946]
[1763398018965,0.455,3113.4,3112.0,1.25967946]
[1763398019313,0.455,3113.4,3112.1,0.85417546]
[1763398020000,0.455,3113.4,3112.0,1.25967946]
[1763398020296,0.455,3113.4,3111.9,0.90699264]
[1763398020297,0.455,3113.4,3112.2,0.405504]
[1763398020595,0.002,3113.5,3112.2,0.684304]
[1763398020796,0.002,3113.5,3112.4,0.405504]
[1763398021007,0.002,3113.5,3112.6,7.44502283]
[1763398021192,0.002,3113.5,3113.0,0.405504]
[1763398021497,0.002,3113.5,3112.9,0.85417546]
[1763398021498,0.002,3116.0,3113.4,0.405504]
[1763398021699,0.1911,3114.9,3114.1,0.405504]
[1763398021859,0.1911,3114.9,3114.2,0.1331]
[1763398022063,0.1911,3115.1,3114.2,0.1331]
[1763398022464,0.1911,3115.1,3113.8,0.90699264]
[1763398022465,0.457,3114.6,3113.8,0.85602079]
[1763398022677,0.457,3114.6,3113.6,0.405504]
[1763398022908,0.002,3114.6,3113.6,1.43912479]
[1763398023267,0.457,3114.6,3113.6,0.405504]
[1763398024000,0.457,3114.6,3113.4,0.85602079]
[1763398024168,0.457,3114.6,3113.2,0.85602079]
[1763398024364,0.457,3114.6,3113.2,0.19973819]
[1763398024606,0.457,3114.6,3112.7,1.72218633]
[1763398024607,0.405504,3114.4,3113.0,0.85602079]
[1763398024825,0.455,3114.3,3112.6,0.85602079]
[1763398025317,0.455,3114.3,3112.7,0.85602079]
[1763398025518,0.455,3114.3,3112.8,0.03212541]
[1763398025719,0.455,3114.3,3112.8,0.85602079]
[1763398025889,0.455,3114.3,3112.7,1.05575898]
[1763398026282,0.455,3114.3,3112.8,0.85602079]
[1763398026681,0.455,3114.3,3112.9,0.85602079]
[1763398026891,0.455,3114.3,3112.8,0.85602079]
[1763398027211,0.455,3114.3,3112.9,0.85602079]
[1763398027416,0.455,3114.3,3113.0,0.85602079]
[1763398027614,0.455,3114.3,3113.2,9.24711412]
[1763398027815,0.002,3114.6,3113.6,0.85602079]
[1763398028018,0.002,3114.6,3113.8,0.85602079]
[1763398028514,0.002,3114.6,3113.9,0.85602079]
[1763398028742,0.002,3114.6,3114.1,1.26152479]
[1763398028888,0.002,3114.6,3114.5,0.0585]
[1763398029084,0.002,3114.6,3114.5,0.91452079]
[1763398029291,0.002,3114.6,3114.5,1.06160898]
[1763398029529,0.002,3114.6,3114.4,0.85602079]
[1763398029737,0.002,3114.6,3114.1,0.90699264]
[1763398029738,0.002,3114.6,3114.3,0.85602079]
[1763398030596,0.002,3114.6,3114.4,0.85602079]
[1763398030794,0.002,3114.6,3114.4,1.54686506]
[1763398031011,0.002,3114.6,3114.5,0.40699264]
[1763398031185,0.002,3114.6,3113.8,2.29863675]
[1763398031186,2.3877979,3114.5,3113.1,2.29863675]
[1763398031383,0.90699264,3113.8,3111.6,0.001]
[1763398031635,0.90699264,3113.3,3111.6,0.001]
[1763398031815,1.78160868,3113.7,3111.6,0.001]
[1763398031816,0.90699264,3112.8,3111.6,0.001]
[1763398032135,0.158,3111.7,3111.6,0.001]
[1763398032339,1.26946665,3112.7,3111.6,0.001]
[1763398032340,0.29949999,3112.6,3111.6,0.001]
[1763398032499,0.82626063,3112.5,3111.6,0.001]
[1763398032696,0.29949999,3112.4,3111.6,0.001]
[1763398032896,0.29949999,3112.3,3111.6,0.001]
[1763398033094,0.405504,3112.1,3111.6,0.001]
[1763398033298,0.1876,3111.4,3111.0,0.001]
[1763398033610,0.405504,3111.1,3108.9,0.001]
[1763398033804,0.174,3109.0,3108.9,0.001]
[1763398034239,0.6606,3109.0,3108.9,0.001]
[1763398034410,0.174,3109.0,3108.9,0.001]
[1763398034610,0.6606,3109.6,3108.9,0.001]
[1763398035921,0.4866,3109.5,3108.9,0.001]
[1763398037445,0.04020068,3109.4,3108.9,0.001]
[1763398037747,0.405504,3109.3,3108.9,0.001]
[1763398038046,0.04020326,3109.2,3108.9,0.001]
[1763398038402,0.4774,3109.1,3108.9,0.001]
[1763398039943,0.4766,3109.1,3108.9,0.001]
[1763398040238,0.44570985,3109.0,3108.9,0.001]
[1763398040445,0.405504,3108.8,3107.3,0.001]
[1763398040749,0.405504,3108.8,3106.9,0.001]
[1763398040750,0.405504,3107.3,3106.9,0.001]
[1763398041042,0.04022914,3107.2,3106.5,0.001]
[1763398041244,0.1798,3106.7,3106.5,0.001]
[1763398041405,0.1798,3106.7,3105.9,0.00045]
[1763398041806,0.882904,3107.3,3105.9,0.00045]
[1763398042205,0.51762914,3107.2,3105.9,0.00045]
[1763398042406,0.405504,3107.1,3105.9,0.00045]
[1763398042607,0.1798,3106.0,3105.9,0.00045]
[1763398042840,0.1572,3107.4,3105.9,0.00045]
[1763398042841,0.882904,3107.1,3105.9,0.00045]
[1763398043043,0.405504,3107.1,3105.9,0.00045]
[1763398043344,0.405504,3106.9,3105.9,0.00045]
[1763398043555,0.1572,3107.4,3106.0,0.499]
[1763398043845,0.1572,3107.4,3105.9,0.00045]
[1763398043846,0.1798,3106.1,3105.9,0.00045]
[1763398044418,0.4774,3107.1,3105.9,0.00045]
[1763398044617,0.1572,3107.4,3106.0,0.499]
[1763398045118,0.64408407,3108.6,3106.1,0.405504]
[1763398045318,0.4774,3107.9,3106.2,0.499]
[1763398045849,0.4774,3108.4,3106.3,0.405504]
[1763398046020,0.4774,3108.4,3106.4,0.499]
[1763398046420,0.4457189,3108.3,3106.4,0.499]
[1763398046744,0.4774,3108.4,3106.4,0.499]
[1763398047043,0.882904,3108.3,3106.4,0.499]
[1763398047347,0.882904,3108.3,3105.9,0.00045]
[1763398047348,0.405504,3108.1,3105.9,0.00045]
[1763398047730,0.405504,3108.0,3106.0,0.499]
[1763398047926,0.405504,3107.8,3106.0,0.499]
[1763398048340,0.4774,3107.7,3106.0,0.499]
[1763398048762,0.1572,3109.3,3106.1,0.405504]
[1763398048763,0.4774,3108.2,3106.1,0.405504]
[1763398049211,0.4774,3108.2,3106.3,0.405504]
[1763398049411,0.4774,3108.2,3106.4,0.499]
[1763398049608,0.4774,3108.6,3106.5,0.405504]
[1763398049846,0.04021232,3108.5,3106.6,0.499]
[1763398050046,0.4774,3108.6,3106.6,0.499]
[1763398050212,0.4774,3108.5,3106.6,0.499]
[1763398050760,0.405504,3108.3,3106.5,0.1899]
[1763398051054,0.405504,3108.1,3106.5,0.1899]
[1763398051259,0.405504,3107.9,3106.5,0.1899]
[1763398051465,0.405504,3107.9,3105.9,0.49945]
[1763398051621,0.405504,3107.7,3105.9,0.49945]
[1763398051822,0.04022396,3107.6,3105.9,0.49945]
[1763398052157,0.51762396,3107.6,3105.9,0.49945]
[1763398052359,0.405504,3107.5,3105.9,0.49945]
[1763398052526,0.6572,3107.4,3105.9,0.49945]
[1763398052727,0.6572,3107.4,3105.9,0.00045]
[1763398052926,0.4774,3107.3,3105.9,0.00045]
[1763398053338,0.405504,3107.1,3105.9,0.00045]
[1763398053534,0.1798,3106.0,3105.9,0.00045]
[1763398054466,0.1798,3107.4,3105.9,0.00045]
[1763398054467,0.405504,3107.0,3105.9,0.00045]
[1763398054631,0.4774,3106.8,3105.9,0.00045]
[1763398055141,0.51763432,3106.8,3105.9,0.00045]
[1763398055568,0.4774,3106.8,3105.9,0.00045]
[1763398055881,0.405504,3107.1,3105.9,0.00045]
[1763398056054,0.4586,3107.2,3105.9,0.00045]
[1763398056239,0.4586,3107.2,3105.9,0.45145]
[1763398056739,0.04023043,3107.1,3105.9,0.45145]
[1763398057063,0.4586,3107.2,3105.9,0.45145]
[1763398057365,0.44573443,3107.1,3105.9,0.00045]
[1763398057555,0.405504,3106.9,3105.9,0.00045]
[1763398057741,0.04023432,3106.8,3105.9,0.00045]
[1763398057932,0.49883432,3106.8,3105.9,0.00045]
[1763398058129,0.405504,3106.7,3105.9,0.00045]
[1763398058473,0.4586,3108.5,3106.7,0.1807]
[1763398058687,0.49881879,3108.0,3106.7,0.6317]
[1763398058895,0.4586,3108.7,3106.7,0.6317]
[1763398059063,0.4586,3108.7,3106.8,0.451]
[1763398059467,0.6384,3108.6,3106.8,0.451]
[1763398059668,0.1798,3108.6,3106.9,0.405504]
[1763398059867,0.1798,3108.6,3106.8,0.451]
[1763398060497,0.4586,3108.5,3106.8,0.451]
[1763398060992,0.44571761,3108.4,3106.7,0.1807]
[1763398061193,1.61068991,3108.4,3106.1,0.451]
[1763398061378,0.405504,3108.2,3106.1,0.451]
[1763398061554,0.70369727,3108.2,3106.1,0.451]
[1763398061759,0.405504,3108.0,3105.7,0.451]
[1763398061992,1.31249664,3107.8,3105.7,0.451]
[1763398062154,1.22411406,3107.7,3105.7,0.451]
[1763398062359,0.405504,3107.5,3105.7,0.451]
[1763398062591,0.44572926,3107.5,3105.9,0.45145]
[1763398062792,0.405504,3107.3,3105.9,0.45145]
[1763398062992,0.6376,3107.4,3105.9,0.45145]
[1763398063194,0.29961832,3107.3,3105.9,0.45145]
[1763398063395,0.29961832,3107.3,3105.9,0.00045]
[1763398063396,0.33986042,3107.2,3105.9,0.00045]
[1763398063603,0.70514664,3107.1,3105.9,0.00045]
[1763398063900,0.405504,3106.9,3105.9,0.00045]
[1763398064105,0.405504,3106.7,3105.9,0.00045]
[1763398064261,0.405504,3106.5,3105.9,0.00045]
[1763398064457,0.29972454,3106.4,3105.9,0.00045]
[1763398064691,0.4586,3106.6,3105.9,0.00045]
[1763398064861,0.29972254,3106.5,3105.9,0.00045]
[1763398065061,0.29972254,3106.4,3105.9,0.00045]
[1763398065281,0.49883691,3106.6,3105.9,0.00045]
[1763398065282,0.4586,3106.6,3105.9,0.00045]
[1763398065494,0.29981962,3106.5,3105.9,0.00045]
[1763398065792,0.29981962,3106.4,3105.9,0.00045]
[1763398066117,0.29980871,3106.5,3105.9,0.00045]
[1763398066310,0.405504,3107.1,3105.9,0.00045]
[1763398066482,0.3401857,3107.0,3105.9,0.00045]
[1763398066810,0.29995397,3106.9,3105.9,0.00045]
[1763398066975,0.29995397,3106.8,3105.9,0.00045]
[1763398067178,0.29995397,3106.7,3105.9,0.00045]
[1763398067379,0.29995397,3106.6,3105.9,0.00045]
[1763398067579,0.29995397,3106.5,3105.9,0.00045]
[1763398067781,0.4586,3107.0,3105.9,0.00045]
[1763398067981,0.30017346,3106.9,3105.9,0.00045]
[1763398068181,0.30017346,3106.8,3105.9,0.00045]
[1763398068389,0.30017346,3106.7,3105.9,0.00045]
[1763398068619,0.30017346,3106.6,3105.9,0.00045]
[1763398068792,0.30017346,3106.5,3105.9,0.00045]
[1763398069114,0.3003264,3106.9,3105.9,0.00045]
[1763398069320,0.30050489,3106.8,3105.9,0.00045]
[1763398069616,0.30050489,3106.7,3105.9,0.00045]
[1763398069843,0.30050489,3106.6,3105.9,0.00045]
[1763398070018,0.30050489,3106.5,3105.9,0.00045]
[1763398070321,0.49883302,3106.9,3105.9,0.00045]
[1763398070322,0.4586,3106.9,3105.9,0.00045]
[1763398070618,0.405504,3106.7,3105.9,0.00045]
[1763398070817,0.30074641,3106.6,3105.9,0.00045]
[1763398071121,0.30074641,3106.5,3105.9,0.00045]
[1763398071287,0.30074641,3106.4,3105.9,0.00045]
[1763398071481,0.30074641,3106.3,3105.9,0.00045]
[1763398071820,0.30074641,3106.2,3105.9,0.00045]
[1763398071997,0.30074641,3106.1,3105.9,0.00045]
[1763398072184,0.30074641,3106.0,3105.9,0.00045]
[1763398072386,0.86628521,3107.2,3105.9,0.00045]
[1763398072613,0.405504,3106.7,3105.9,0.00045]
[1763398072820,0.30070087,3106.6,3105.9,0.00045]
[1763398073116,0.44573961,3106.7,3105.9,0.00045]
[1763398073117,0.30070087,3106.5,3105.9,0.00045]
[1763398073321,0.90699264,3107.3,3105.9,0.00045]
[1763398073322,0.30070087,3106.4,3105.9,0.00045]
[1763398073495,0.30070087,3106.3,3105.9,0.00045]
[1763398073734,0.405504,3107.1,3105.9,0.00045]
[1763398073944,0.405504,3106.9,3105.9,0.00045]
[1763398074147,0.30063246,3106.8,3106.7,0.586204]
[1763398074455,0.002,3107.9,3106.7,0.1807]
[1763398074626,0.181,3107.9,3106.7,0.6317]
[1763398074827,0.181,3107.9,3107.1,1.1494755]
[1763398075028,0.181,3107.9,3107.1,1.52276075]
[1763398075477,0.002,3107.9,3107.2,0.451]
[1763398075659,0.002,3107.9,3107.3,0.405504]
[1763398075817,0.002,3107.9,3107.8,0.1807]
[1763398076023,0.002,3107.9,3107.6,2.29863675]
[1763398076264,0.002,3107.9,3107.7,0.78963294]
[1763398076749,0.002,3107.9,3107.8,1.72060409]
[1763398077169,0.002,3107.9,3107.7,1.72060409]
[1763398077368,0.002,3107.9,3107.8,1.72060409]
[1763398077940,0.002,3107.9,3107.8,2.17160409]
[1763398078123,0.002,3107.9,3107.8,0.451]
[1763398078320,0.002,3107.9,3107.8,1.71814779]
[1763398079559,0.002,3107.9,3107.7,1.71814779]
[1763398080222,0.002,3107.9,3107.8,0.451]
[1763398080465,0.002,3107.9,3107.8,2.20132489]
[1763398080650,0.002,3107.9,3107.8,0.451]
[1763398080860,0.002,3107.9,3107.8,1.71815454]
[1763398081208,0.4606,3107.9,3107.4,1.14556775]
[1763398081347,0.002,3107.9,3107.4,1.59656775]
[1763398081526,0.002,3107.9,3107.6,1.14556775]
[1763398081725,0.002,3107.9,3107.4,1.14556775]
[1763398081927,0.4586,3107.8,3107.2,1.14556775]
[1763398082160,0.002,3107.9,3107.2,1.14556775]
[1763398082321,0.002,3107.9,3107.4,1.14556775]
[1763398082527,0.002,3107.9,3107.7,1.14556775]
[1763398082728,0.002,3107.9,3107.7,1.71815454]
[1763398083255,0.002,3107.9,3106.9,2.88984828]
[1763398083256,0.002,3107.9,3107.8,2.16915454]
[1763398083564,0.002,3107.9,3107.8,0.451]
[1763398083764,0.002,3109.1,3108.2,0.405504]
[1763398083949,0.002,3109.5,3109.0,0.1807]
[1763398084268,0.002,3109.5,3109.4,1.1409311]
[1763398084465,0.002,3109.5,3109.4,1.74578433]
[1763398084684,0.002,3109.5,3109.4,0.451]
[1763398085003,0.002,3109.5,3109.2,1.14182489]
[1763398085127,0.002,3109.5,3109.2,1.38943534]
[1763398085324,0.002,3109.5,3109.3,0.451]
[1763398085727,0.002,3109.5,3109.2,0.24761045]
[1763398085925,0.0012,3109.5,3109.3,0.4593]
[1763398086152,0.0012,3109.5,3109.4,1.7120923]
[1763398086350,0.179,3110.9,3109.4,1.7120923]
[1763398086351,0.4671,3111.7,3109.5,0.405504]
[1763398086565,0.4671,3111.7,3109.7,0.405504]
[1763398086772,4.52218649,3114.1,3109.5,0.864804]
[1763398086773,0.1802,3114.1,3110.6,1.13881639]
[1763398086924,0.1802,3114.1,3110.4,0.90699264]
[1763398086925,0.1572,3112.5,3111.0,1.13881639]
[1763398087124,0.0239332,3112.4,3111.0,1.13881639]
[1763398087329,0.4910332,3112.4,3110.7,0.1806]
[1763398087665,0.4671,3112.4,3110.8,0.4593]
[1763398088526,0.4671,3112.4,3110.7,0.1806]
[1763398088527,0.4910332,3112.4,3110.7,0.1806]
[1763398088931,0.405504,3112.3,3110.7,0.1806]
[1763398089159,0.4910332,3112.4,3110.8,0.4593]
[1763398089361,0.1572,3112.6,3110.8,0.4593]
[1763398089665,0.1572,3112.6,3110.9,0.405504]
[1763398089882,0.1858,3113.0,3110.9,0.405504]
[1763398090061,0.1858,3113.0,3111.1,0.405504]
[1763398090375,0.1572,3113.2,3111.1,0.405504]
[1763398090548,0.1572,3113.2,3111.3,0.405504]
[1763398090730,0.1572,3113.2,3111.2,0.4593]
[1763398090731,0.1572,3113.2,3111.5,0.405504]
[1763398091064,1.09108912,3114.4,3111.5,0.405504]
[1763398091065,0.1572,3113.5,3111.5,0.405504]
[1763398091250,0.1572,3113.5,3111.7,0.405504]
[1763398091451,0.6243,3113.5,3111.7,0.405504]
[1763398091765,0.6243,3113.5,3111.8,0.4593]
[1763398091967,0.1572,3113.5,3111.8,0.4593]
[1763398092168,0.4671,3114.0,3111.9,0.405504]
[1763398092689,0.18,3115.2,3112.1,0.405504]
[1763398092690,0.4691,3114.6,3112.1,0.405504]
[1763398092864,0.4910332,3114.5,3112.3,0.405504]
[1763398093184,3.70182144,3114.5,3111.7,0.4593]
[1763398093382,1.7968477,3114.4,3111.7,0.4593]
[1763398093581,0.4294372,3114.3,3111.8,0.4593]
[1763398093784,0.872604,3114.3,3111.9,0.405504]
[1763398093960,0.8965372,3114.3,3111.9,0.405504]
[1763398094150,0.405504,3114.1,3112.0,0.4593]
[1763398094354,0.4671,3114.2,3112.1,0.405504]
[1763398094673,0.405504,3114.0,3112.0,0.4593]
[1763398094875,0.0239332,3113.9,3112.0,0.4593]
[1763398095073,0.405504,3113.8,3112.0,0.4593]
[1763398095276,0.0239332,3113.7,3112.0,0.4593]
[1763398095452,0.405504,3113.6,3111.6,0.1806]
[1763398095654,0.405504,3113.6,3111.7,0.03213677]
[1763398095854,0.405504,3113.4,3111.6,0.6399]
[1763398096105,0.4671,3113.5,3111.7,0.4593]
[1763398096357,0.1802,3113.9,3111.8,0.405504]
[1763398096514,0.4671,3113.8,3111.8,0.405504]
[1763398096800,0.405504,3113.7,3111.8,0.4593]
[1763398097103,0.4910332,3113.6,3111.8,0.4593]
[1763398097309,0.4671,3113.6,3111.8,0.4593]
[1763398097517,0.1802,3113.9,3111.9,0.4376387]
[1763398097800,0.1802,3113.9,3111.9,0.405504]
[1763398097968,0.1802,3113.9,3112.1,0.405504]
[1763398098368,0.1802,3113.9,3112.3,0.405504]
[1763398098810,0.002,3113.9,3112.5,0.405504]
[1763398098968,0.002,3113.9,3113.8,0.1806]
[1763398099169,0.002,3113.9,3113.8,0.6399]
[1763398099375,0.002,3114.3,3113.8,1.045404]
[1763398099570,0.002,3114.3,3114.2,0.586104]
[1763398099892,0.002,3114.3,3114.2,0.6399]
[1763398100310,0.002,3114.3,3113.8,0.1806]
[1763398100508,0.002,3114.3,3113.9,0.4593]
[1763398100707,0.002,3114.3,3114.2,0.1806]
[1763398101108,0.002,3114.3,3114.2,0.6399]
[1763398102129,0.002,3114.6,3114.2,1.07751497]
[1763398102424,0.002,3114.6,3114.3,0.864804]
[1763398102586,0.002,3114.6,3114.2,0.1806]
[1763398102790,0.002,3114.6,3113.9,0.4593]
[1763398102986,0.002,3114.6,3113.5,0.1806]
[1763398103526,0.002,3114.6,3113.6,0.4593]
[1763398104026,0.002,3114.6,3113.7,0.405504]
[1763398104230,0.002,3114.6,3114.5,0.1806]
[1763398105156,0.002,3114.6,3113.5,0.1806]
[1763398105316,0.002,3114.6,3113.6,0.4593]
[1763398105666,0.002,3114.6,3113.0,0.1806]
[1763398105667,0.4691,3114.6,3113.0,0.1806]
[1763398106154,0.4691,3114.6,3113.0,0.6399]
[1763398106495,0.4691,3114.6,3113.1,0.4593]
[1763398106496,0.002,3114.6,3113.1,0.4593]
[1763398106900,0.002,3114.6,3113.2,0.405504]
[1763398107309,0.002,3114.6,3113.4,0.405504]
[1763398107807,0.002,3114.6,3113.4,0.4593]
[1763398108428,0.4691,3114.6,3113.1,0.4593]
[1763398109020,0.0012,3114.6,3113.2,0.405504]
[1763398109241,0.0012,3114.6,3113.2,1.31249664]
[1763398109438,0.0012,3114.6,3113.4,0.405504]
[1763398109747,0.0012,3114.6,3114.5,0.586104]
[1763398109920,0.0012,3114.6,3114.5,0.1806]
[1763398110123,0.0012,3114.6,3114.5,0.6399]
[1763398110736,0.0012,3114.6,3114.2,0.1806]
[1763398110934,0.0012,3114.6,3113.9,0.405504]
[1763398111115,0.0012,3114.6,3113.7,0.4593]
[1763398111312,0.0012,3114.6,3113.3,1.01530022]
[1763398111516,0.4671,3114.5,3113.1,0.4593]
[1763398112246,0.0012,3114.6,3113.2,0.83812056]
[1763398112617,0.0012,3114.6,3113.4,0.405504]
[1763398112815,0.0012,3114.6,3113.7,0.83812056]
[1763398113453,0.0012,3114.6,3113.8,0.83812056]
[1763398113746,0.0012,3114.6,3113.9,0.83812056]
[1763398113910,0.0012,3114.6,3113.9,1.08174426]
[1763398114318,0.0012,3114.6,3113.7,0.83812056]
[1763398114515,0.0012,3114.6,3113.6,0.83812056]
[1763398115254,0.0012,3114.6,3113.9,0.83812056]
[1763398115914,0.1802,3114.0,3113.3,0.83912056]
[1763398116215,0.4294372,3113.9,3113.3,0.001]
[1763398116420,0.900104,3113.9,3113.3,0.001]
[1763398116725,0.4946,3113.9,3113.3,0.001]
[1763398116930,0.4946,3113.8,3113.3,0.001]
[1763398117350,0.405504,3113.7,3113.3,0.001]
[1763398117565,0.4294372,3113.7,3113.3,0.001]
[1763398117721,0.4946,3113.6,3113.3,0.001]
[1763398118155,0.1802,3114.0,3113.3,0.001]
[1763398118457,0.4946,3113.9,3113.3,0.001]
[1763398118952,0.1802,3114.0,3113.3,0.83912056]
[1763398119157,0.901304,3114.6,3113.4,0.83812056]
[1763398119158,0.4958,3114.6,3113.4,0.83812056]
[1763398119467,0.877104,3114.5,3113.5,0.83812056]
[1763398119953,0.4716,3114.4,3113.5,0.83812056]
[1763398120318,0.4716,3114.4,3113.3,1.13981639]
[1763398120319,0.4716,3114.4,3113.6,0.83812056]
[1763398120624,0.4716,3114.4,3113.4,1.13881639]
[1763398120625,0.405504,3114.3,3113.7,0.83812056]
[1763398120875,0.405504,3114.3,3113.5,0.83812056]
[1763398120876,0.4294372,3114.3,3113.5,0.83812056]
[1763398121023,0.1802,3113.6,3113.3,0.001]
[1763398121526,0.4716,3113.5,3113.3,0.001]
[1763398122341,0.4294372,3113.4,3113.3,0.001]
[1763398122648,0.1802,3113.6,3113.3,0.001]
[1763398122853,0.4716,3113.5,3113.3,0.001]
[1763398123256,0.4716,3114.0,3113.3,0.001]
[1763398123462,0.1802,3114.0,3113.3,0.001]
[1763398123642,0.4716,3113.9,3113.3,0.001]
[1763398125353,0.4716,3113.9,3113.3,0.83912056]
[1763398125837,0.4716,3113.9,3113.3,0.001]
[1763398126352,0.405504,3113.8,3113.3,0.001]
[1763398126760,0.4955332,3113.7,3113.3,0.001]
[1763398127273,0.1802,3114.0,3113.3,0.001]
[1763398127666,0.6518,3114.0,3113.3,0.001]
[1763398127851,0.4716,3113.9,3113.3,0.001]
[1763398130943,0.0239332,3113.8,3113.3,0.001]
[1763398131190,0.4294372,3113.8,3113.3,0.001]
[1763398131344,0.18080298,3113.7,3113.3,0.001]
[1763398131543,0.1802,3114.0,3113.3,0.001]
[1763398132056,0.4716,3113.7,3113.3,0.001]
[1763398132653,0.1802,3114.0,3113.3,0.85932403]
[1763398133061,0.4716,3113.9,3113.3,0.85932403]
[1763398133257,0.4716,3113.9,3113.3,0.001]
[1763398133460,0.1802,3114.0,3113.3,0.001]
[1763398133659,0.1802,3114.0,3113.3,0.85932403]
[1763398135149,0.1802,3114.0,3113.4,0.85832403]
[1763398135854,0.1802,3114.0,3113.3,0.001]
[1763398135855,0.4716,3113.9,3113.3,0.001]
[1763398136300,0.4716,3113.9,3113.3,0.85932403]
[1763398136449,0.4716,3113.9,3113.3,0.001]
[1763398136646,0.405504,3113.8,3113.3,0.001]
[1763398137162,0.4716,3113.7,3113.3,0.001]
[1763398137361,0.1802,3114.0,3113.3,0.001]
[1763398137562,0.6757332,3114.0,3113.3,0.001]
[1763398138087,0.4716,3113.9,3113.3,0.001]
[1763398138286,0.1802,3114.0,3113.3,0.001]
[1763398138452,0.1802,3114.0,3113.3,0.85932403]